fUSD/lending_fUSD_20250514
["ID","MTS","AMOUNT","RATE_DAILY","PERIOD"]
[360983504,1747181164172,-289.66316054,9.915e-05,2]
[360983505,1747181167529,-345.0511175,9.915e-05,2]
[360983506,1747181173860,-210.80957351,9.915e-05,2]
[360983507,1747181175628,-177.5739265,9.915e-05,2]
[360983508,1747181177065,-325.9720955,9.915e-05,2]
[360983509,1747181179250,-251.98288294,9.915e-05,2]
[360983510,1747181181619,-200.0,9.915e-05,2]
[360983511,1747181183243,-180.2516955,9.915e-05,2]
[360983512,1747181185602,-309.38275032,9.915e-05,2]
[360983513,1747181187296,-280.54724968,9.915e-05,2]
[360983514,1747181190431,-217.69796335,9.915e-05,2]
[360983515,1747181193227,-192.37203665,9.915e-05,2]
[360983519,1747181299342,150.0,9.935e-05,7]
[360983524,1747181432009,-1125.78874111,9.915e-05,2]
[360983525,1747181432108,-2123.7068069,9.915e-05,2]
[360983526,1747181432118,-200.0,9.925e-05,2]
[360983527,1747181432127,-200.0,9.932e-05,2]
[360983528,1747181432137,-250.0,9.935e-05,2]
[360983529,1747181432149,-679.63611081,9.935e-05,2]
[360983530,1747181432161,-1243.79388919,9.935e-05,2]
[360983531,1747181432174,-150.0,9.936e-05,2]
[360983532,1747181432184,-300.0,9.936e-05,2]
[360983533,1747181432194,-300.0,9.936e-05,2]
[360983534,1747181432203,-500.0,9.937e-05,2]
[360983535,1747181432213,-500.0,9.937e-05,2]
[360983536,1747181432223,-500.0,9.937e-05,2]
[360983537,1747181432232,-500.0,9.937e-05,2]
[360983538,1747181432242,-500.0,9.937e-05,2]
[360983539,1747181432251,-500.0,9.937e-05,2]
[360983540,1747181432261,-500.0,9.937e-05,2]
[360983541,1747181432270,-500.0,9.937e-05,2]
[360983542,1747181432279,-500.0,9.937e-05,2]
[360983543,1747181432289,-500.0,9.937e-05,2]
[360983544,1747181432298,-500.0,9.937e-05,2]
[360983545,1747181432307,-500.0,9.937e-05,2]
[360983547,1747181432317,-500.0,9.937e-05,2]
[360983548,1747181432327,-500.0,9.937e-05,2]
[360983550,1747181432337,-500.0,9.937e-05,2]
[360983552,1747181432346,-500.0,9.937e-05,2]
[360983554,1747181432357,-500.0,9.937e-05,2]
[360983556,1747181432368,-500.0,9.937e-05,2]
[360983558,1747181432377,-500.0,9.937e-05,2]
[360983560,1747181432387,-500.0,9.937e-05,2]
[360983562,1747181432396,-500.0,9.937e-05,2]
[360983564,1747181432406,-500.0,9.937e-05,2]
[360983566,1747181432415,-500.0,9.937e-05,2]
[360983568,1747181432424,-500.0,9.937e-05,2]
[360983570,1747181432433,-500.0,9.937e-05,2]
[360983572,1747181432443,-500.0,9.937e-05,2]
[360983574,1747181432452,-500.0,9.937e-05,2]
[360983575,1747181432461,-500.0,9.937e-05,2]
[360983577,1747181432470,-500.0,9.937e-05,2]
[360983579,1747181432480,-500.0,9.937e-05,2]
[360983581,1747181432489,-500.0,9.937e-05,2]
[360983583,1747181432498,-500.0,9.937e-05,2]
[360983585,1747181432507,-500.0,9.937e-05,2]
[360983587,1747181432517,-500.0,9.937e-05,2]
[360983589,1747181432526,-500.0,9.937e-05,2]
[360983591,1747181432537,-500.0,9.937e-05,2]
[360983593,1747181432547,-500.0,9.937e-05,2]
[360983595,1747181432556,-500.0,9.937e-05,2]
[360983597,1747181432566,-500.0,9.937e-05,2]
[360983599,1747181432575,-500.0,9.937e-05,2]
[360983601,1747181432584,-500.0,9.937e-05,2]
[360983603,1747181432593,-500.0,9.937e-05,2]
[360983605,1747181432603,-500.0,9.937e-05,2]
[360983607,1747181432613,-500.0,9.937e-05,2]
[360983609,1747181432622,-500.0,9.937e-05,2]
[360983610,1747181432632,-500.0,9.937e-05,2]
[360983612,1747181432642,-500.0,9.937e-05,2]
[360983614,1747181432651,-500.0,9.937e-05,2]
[360983616,1747181432661,-500.0,9.937e-05,2]
[360983618,1747181432671,-500.0,9.937e-05,2]
[360983620,1747181432683,-500.0,9.937e-05,2]
[360983622,1747181432692,-500.0,9.937e-05,2]
[360983624,1747181432701,-500.0,9.937e-05,2]
[360983626,1747181432711,-500.0,9.937e-05,2]
[360983628,1747181432720,-500.0,9.937e-05,2]
[360983630,1747181432729,-335.98336092,9.937e-05,2]
[360983632,1747181432740,-322.49,9.957e-05,2]
[360983633,1747181432749,-450.0,0.0001,2]
[360983634,1747181432758,-1000.0,0.00010099,2]
[360983635,1747181432767,-344.67554073,0.00010136,2]
[360983636,1747181432777,-166.39,0.00010301,2]
[360983637,1747181432787,-1000.0,0.00010476,2]
[360983638,1747181432796,-1370.45,0.00010478,2]
[360983639,1747181432805,-207.4,0.00010852,2]
[360983640,1747181432815,-242.65229792,0.00010857,2]
[360983641,1747181432824,-169.79070433,0.00010857,2]
[360983642,1747181432834,-177.41379719,0.00010857,2]
[360983643,1747181432844,-181.97295532,0.00010857,2]
[360983644,1747181432853,-1541.08,0.00010857,2]
[360983645,1747181432863,-3636.76,0.00010858,2]
[360983646,1747181432872,-5280.62,0.00010858,2]
[360983647,1747181432882,-299.99,0.00010858,2]
[360983648,1747181432893,-487.45,0.00010858,2]
[360983649,1747181432902,-5258.94164315,0.00010858,2]
[360983650,1747181432981,-267.24773672,0.00010858,2]
[360983651,1747181432994,-4473.80062013,0.00010858,2]
[360983652,1747181433004,-4693.35,0.00010858,2]
[360983653,1747181433019,-335.81,0.00010858,2]
[360983654,1747181433030,-150.99,0.00010858,2]
[360983655,1747181433040,-151.59603855,0.00010858,2]
[360983656,1747181433050,-526.40799019,0.00010858,2]
[360983657,1747181433060,-983.6561,0.00010858,2]
[360983658,1747181433070,-25801.1558,0.00010858,2]
[360983659,1747181433079,-41700.0,0.00010858,2]
[360983660,1747181433089,-159.2843,0.00010858,2]
[360983661,1747181433099,-938.0889,0.00010858,2]
[360983662,1747181433109,-8548.7243,0.00010859,2]
[360983663,1747181433118,-218.40515605,0.00010899,2]
[360983664,1747181433128,-3452.3036,0.000109,2]
[360983665,1747181433138,-198.15518236,0.000109,2]
[360983666,1747181433148,-1520.9111,0.000109,2]
[360983667,1747181433158,-170.25274647,0.000109,2]
[360983668,1747181433169,-8823.99912203,0.000109,2]
[360983669,1747181433179,-200.0,0.00010906,2]
[360983670,1747181433189,-200.0,0.00010906,2]
[360983671,1747181433199,-154.0,0.0001091,2]
[360983672,1747181433209,-4031.0,0.0001091,2]
[360983673,1747181433219,-6821.0,0.0001091,2]
[360983674,1747181433229,-420.0,0.0001093,2]
[360983675,1747181433239,-200.0,0.00010932,2]
[360983676,1747181433248,-250.0,0.00010941,2]
[360983677,1747181433258,-170.58,0.00010948,2]
[360983678,1747181433267,-170.58,0.00010948,2]
[360983679,1747181433277,-170.58,0.00010948,2]
[360983680,1747181433287,-170.58,0.00010948,2]
[360983681,1747181433296,-170.58,0.00010948,2]
[360983682,1747181433306,-170.58,0.00010948,2]
[360983683,1747181433315,-170.58,0.00010948,2]
[360983684,1747181433326,-151.0,0.00010951,2]
[360983685,1747181433335,-156.587,0.00010951,2]
[360983686,1747181433345,-287.61899177,0.00010951,2]
[360983687,1747181433355,-668.65185757,0.00010951,2]
[360983688,1747181433364,-307.49886802,0.00010958,2]
[360983689,1747181433374,-196.31174196,0.00010958,2]
[360983690,1747181433384,-345.06608791,0.00010958,2]
[360983691,1747181433393,-400.0,0.00010958,2]
[360983692,1747181433403,-230.09633251,0.00010958,2]
[360983693,1747181433414,-180.08947984,0.00010958,2]
[360983694,1747181433423,-400.0,0.00010958,2]
[360983695,1747181433433,-301.01925369,0.00010958,2]
[360983696,1747181433443,-400.0,0.00010958,2]
[360983697,1747181433452,-400.0,0.00010958,2]
[360983698,1747181433462,-307.20343804,0.00010958,2]
[360983699,1747181433472,-400.0,0.00010958,2]
[360983700,1747181433481,-400.0,0.00010958,2]
[360983701,1747181433491,-400.0,0.00010958,2]
[360983702,1747181433501,-400.0,0.00010958,2]
[360983703,1747181433510,-400.0,0.00010958,2]
[360983704,1747181433520,-159.008907,0.00010958,2]
[360983705,1747181433529,-158.843993,0.00010958,2]
[360983706,1747181433538,-400.0,0.00010958,2]
[360983707,1747181433547,-400.0,0.00010958,2]
[360983708,1747181433557,-5709.376719,0.00010958,2]
[360983709,1747181433566,-481.94,0.00010958,2]
[360983710,1747181433576,-400.0,0.00010958,2]
[360983711,1747181433585,-400.0,0.00010958,2]
[360983712,1747181433594,-287.022947,0.00010958,2]
[360983713,1747181433604,-400.0,0.00010958,2]
[360983714,1747181433613,-400.0,0.00010958,2]
[360983715,1747181433623,-400.0,0.00010958,2]
[360983716,1747181433632,-400.0,0.00010958,2]
[360983717,1747181433642,-819.945195,0.00010958,2]
[360983718,1747181433651,-400.0,0.00010958,2]
[360983719,1747181433660,-400.0,0.00010958,2]
[360983720,1747181433671,-400.0,0.00010958,2]
[360983721,1747181433681,-350.56797425,0.00010958,2]
[360983722,1747181433690,-400.0,0.00010958,2]
[360983723,1747181433699,-509.35,0.00010958,2]
[360983724,1747181433709,-443.20526365,0.00010958,2]
[360983725,1747181433718,-400.0,0.00010958,2]
[360983726,1747181433728,-405.98,0.00010958,2]
[360983727,1747181433737,-952.55,0.00010958,2]
[360983728,1747181433748,-400.0,0.00010958,2]
[360983729,1747181433758,-400.0,0.00010958,2]
[360983730,1747181433767,-400.0,0.00010958,2]
[360983731,1747181433776,-400.0,0.00010958,2]
[360983732,1747181433786,-400.0,0.00010958,2]
[360983733,1747181433796,-400.0,0.00010958,2]
[360983734,1747181433809,-400.0,0.00010958,2]
[360983735,1747181433820,-903.12,0.00010958,2]
[360983736,1747181433830,-400.0,0.00010958,2]
[360983737,1747181433841,-400.0,0.00010958,2]
[360983738,1747181433850,-400.0,0.00010958,2]
[360983739,1747181433860,-400.0,0.00010958,2]
[360983740,1747181433870,-263.32660264,0.00010958,2]
[360983741,1747181433880,-400.0,0.00010958,2]
[360983742,1747181433890,-400.0,0.00010958,2]
[360983743,1747181433899,-951.16,0.00010958,2]
[360983744,1747181433910,-400.0,0.00010958,2]
[360983745,1747181433920,-400.0,0.00010958,2]
[360983746,1747181433930,-400.0,0.00010958,2]
[360983747,1747181433940,-400.0,0.00010958,2]
[360983748,1747181433955,-400.0,0.00010958,2]
[360983749,1747181433964,-400.0,0.00010958,2]
[360983750,1747181433973,-400.0,0.00010958,2]
[360983751,1747181433983,-489.6477521,0.00010958,2]
[360983752,1747181433994,-400.0,0.00010958,2]
[360983753,1747181434003,-400.0,0.00010958,2]
[360983754,1747181434012,-669.77,0.00010958,2]
[360983755,1747181434023,-400.0,0.00010958,2]
[360983756,1747181434033,-400.0,0.00010958,2]
[360983757,1747181434043,-481.32,0.00010958,2]
[360983758,1747181434053,-400.0,0.00010958,2]
[360983759,1747181434062,-400.0,0.00010958,2]
[360983760,1747181434072,-457.14,0.00010958,2]
[360983761,1747181434082,-1550.24,0.00010958,2]
[360983762,1747181434092,-400.0,0.00010958,2]
[360983763,1747181434101,-400.0,0.00010958,2]
[360983764,1747181434112,-400.0,0.00010958,2]
[360983765,1747181434122,-400.0,0.00010958,2]
[360983766,1747181434131,-400.0,0.00010958,2]
[360983767,1747181434142,-483.35750954,0.00010958,2]
[360983768,1747181434151,-400.0,0.00010958,2]
[360983769,1747181434161,-400.0,0.00010958,2]
[360983770,1747181434171,-400.0,0.00010958,2]
[360983771,1747181434182,-990.73,0.00010958,2]
[360983772,1747181434192,-400.0,0.00010958,2]
[360983773,1747181434201,-400.0,0.00010958,2]
[360983774,1747181434211,-939.52,0.00010958,2]
[360983775,1747181434428,-400.0,0.00010958,2]
[360983776,1747181434438,-400.0,0.00010958,2]
[360983777,1747181434448,-400.0,0.00010958,2]
[360983778,1747181434458,-212.84043537,0.00010958,2]
[360983779,1747181434468,-400.0,0.00010958,2]
[360983780,1747181434478,-400.0,0.00010958,2]
[360983781,1747181434488,-400.0,0.00010958,2]
[360983782,1747181434498,-192.04651815,0.00010958,2]
[360983783,1747181434509,-400.0,0.00010958,2]
[360983784,1747181434519,-400.0,0.00010958,2]
[360983785,1747181434528,-400.0,0.00010958,2]
[360983786,1747181434538,-522.60070961,0.00010958,2]
[360983787,1747181434547,-376.45659774,0.00010958,2]
[360983788,1747181434557,-400.0,0.00010958,2]
[360983789,1747181434566,-763.44,0.00010958,2]
[360983790,1747181434576,-400.0,0.00010958,2]
[360983791,1747181434585,-400.0,0.00010958,2]
[360983792,1747181434595,-1029.922188,0.00010958,2]
[360983793,1747181434605,-400.0,0.00010958,2]
[360983794,1747181434788,-400.0,0.00010958,2]
[360983795,1747181434809,-400.0,0.00010958,2]
[360983796,1747181434819,-500.71800626,0.00010958,2]
[360983797,1747181434829,-400.0,0.00010958,2]
[360983798,1747181434838,-400.0,0.00010958,2]
[360983799,1747181434847,-400.0,0.00010958,2]
[360983800,1747181434857,-643.16,0.00010958,2]
[360983801,1747181434866,-860.99,0.00010958,2]
[360983802,1747181434876,-418.365459,0.00010958,2]
[360983803,1747181434885,-8222.71161,0.00010958,2]
[360983804,1747181434895,-422.63769423,0.00010958,2]
[360983805,1747181434904,-958.84,0.00010958,2]
[360983806,1747181434914,-400.0,0.00010958,2]
[360983807,1747181434924,-400.0,0.00010958,2]
[360983808,1747181434934,-1166.15,0.00010958,2]
[360983809,1747181434948,-400.0,0.00010958,2]
[360983810,1747181434957,-400.0,0.00010958,2]
[360983811,1747181434966,-400.0,0.00010958,2]
[360983812,1747181434976,-400.0,0.00010958,2]
[360983813,1747181434986,-539.51764996,0.00010958,2]
[360983814,1747181434996,-400.0,0.00010958,2]
[360983815,1747181435006,-400.0,0.00010958,2]
[360983816,1747181435015,-622.57,0.00010958,2]
[360983817,1747181435026,-400.0,0.00010958,2]
[360983818,1747181435036,-400.0,0.00010958,2]
[360983819,1747181435046,-400.0,0.00010958,2]
[360983820,1747181435055,-400.0,0.00010958,2]
[360983821,1747181435064,-400.0,0.00010958,2]
[360983822,1747181435074,-400.0,0.00010958,2]
[360983823,1747181435084,-150.17904001,0.00010958,2]
[360983824,1747181435094,-400.0,0.00010958,2]
[360983825,1747181435103,-400.0,0.00010958,2]
[360983826,1747181435113,-400.0,0.00010958,2]
[360983827,1747181435123,-259.29006995,0.00010958,2]
[360983828,1747181435134,-400.0,0.00010958,2]
[360983829,1747181435145,-342.37866541,0.00010958,2]
[360983830,1747181435155,-402.70138768,0.00010958,2]
[360983831,1747181435166,-400.0,0.00010958,2]
[360983832,1747181435176,-400.0,0.00010958,2]
[360983833,1747181435185,-403.61604175,0.00010958,2]
[360983834,1747181435195,-400.0,0.00010958,2]
[360983835,1747181435205,-400.0,0.00010958,2]
[360983836,1747181435214,-400.0,0.00010958,2]
[360983837,1747181435224,-400.0,0.00010958,2]
[360983838,1747181435233,-400.0,0.00010958,2]
[360983839,1747181435242,-400.0,0.00010958,2]
[360983840,1747181435251,-512.87,0.00010958,2]
[360983841,1747181435260,-400.0,0.00010958,2]
[360983842,1747181435269,-510.67429953,0.00010958,2]
[360983843,1747181435278,-1124.43,0.00010958,2]
[360983844,1747181435287,-400.0,0.00010958,2]
[360983845,1747181435298,-408.96,0.00010958,2]
[360983846,1747181435314,-400.0,0.00010958,2]
[360983847,1747181435323,-400.0,0.00010958,2]
[360983848,1747181435332,-400.0,0.00010958,2]
[360983849,1747181435341,-400.0,0.00010958,2]
[360983850,1747181435352,-400.0,0.00010958,2]
[360983851,1747181435361,-400.0,0.00010958,2]
[360983852,1747181435369,-400.0,0.00010958,2]
[360983853,1747181435379,-400.0,0.00010958,2]
[360983854,1747181435388,-400.0,0.00010958,2]
[360983855,1747181435398,-400.0,0.00010958,2]
[360983856,1747181435408,-198.9,0.00010958,2]
[360983857,1747181435421,-557.48,0.00010958,2]
[360983858,1747181435431,-400.0,0.00010958,2]
[360983859,1747181435440,-668.4,0.00010958,2]
[360983860,1747181435450,-400.0,0.00010958,2]
[360983861,1747181435459,-400.0,0.00010958,2]
[360983862,1747181435468,-400.0,0.00010958,2]
[360983863,1747181435478,-561.99,0.00010958,2]
[360983864,1747181435487,-391.94827582,0.00010958,2]
[360983865,1747181435496,-400.0,0.00010958,2]
[360983866,1747181435506,-152.08680848,0.00010958,2]
[360983867,1747181435515,-400.0,0.00010958,2]
[360983868,1747181435525,-400.0,0.00010958,2]
[360983869,1747181435534,-1277.58,0.00010958,2]
[360983870,1747181435543,-400.0,0.00010958,2]
[360983871,1747181435553,-400.0,0.00010958,2]
[360983872,1747181435562,-400.0,0.00010958,2]
[360983873,1747181435572,-400.0,0.00010958,2]
[360983874,1747181435581,-400.0,0.00010958,2]
[360983875,1747181435591,-400.0,0.00010958,2]
[360983876,1747181435600,-400.0,0.00010958,2]
[360983877,1747181435609,-400.0,0.00010958,2]
[360983878,1747181435618,-400.0,0.00010958,2]
[360983879,1747181435628,-400.0,0.00010958,2]
[360983880,1747181435638,-400.0,0.00010958,2]
[360983881,1747181435647,-930.6,0.00010958,2]
[360983882,1747181435656,-400.0,0.00010958,2]
[360983883,1747181435667,-400.0,0.00010958,2]
[360983884,1747181435676,-428.44,0.00010958,2]
[360983885,1747181435687,-400.0,0.00010958,2]
[360983886,1747181435696,-414.51,0.00010958,2]
[360983887,1747181435706,-400.0,0.00010958,2]
[360983888,1747181435715,-400.0,0.00010958,2]
[360983889,1747181435725,-400.0,0.00010958,2]
[360983890,1747181435734,-400.0,0.00010958,2]
[360983891,1747181435743,-400.0,0.00010958,2]
[360983892,1747181435753,-414.49,0.00010958,2]
[360983893,1747181435762,-411.84416576,0.00010958,2]
[360983894,1747181435771,-1706.3,0.00010958,2]
[360983895,1747181435780,-400.0,0.00010958,2]
[360983896,1747181435790,-400.0,0.00010958,2]
[360983897,1747181435799,-400.0,0.00010958,2]
[360983898,1747181435808,-401.56,0.00010958,2]
[360983899,1747181435817,-400.0,0.00010958,2]
[360983900,1747181435827,-400.0,0.00010958,2]
[360983901,1747181435836,-400.0,0.00010958,2]
[360983902,1747181435845,-299.93,0.00010958,2]
[360983903,1747181435855,-400.0,0.00010958,2]
[360983904,1747181435865,-459.57,0.00010958,2]
[360983905,1747181435874,-400.0,0.00010958,2]
[360983906,1747181435883,-406.0726184,0.00010958,2]
[360983907,1747181435893,-400.0,0.00010958,2]
[360983908,1747181435902,-400.0,0.00010958,2]
[360983909,1747181435912,-400.0,0.00010958,2]
[360983910,1747181435923,-400.0,0.00010958,2]
[360983911,1747181435933,-400.0,0.00010958,2]
[360983912,1747181435943,-400.0,0.00010958,2]
[360983913,1747181435955,-405.48036913,0.00010958,2]
[360983914,1747181435964,-320.88813517,0.00010958,2]
[360983915,1747181435975,-400.0,0.00010958,2]
[360983916,1747181435985,-992.51,0.00010958,2]
[360983917,1747181435995,-400.0,0.00010958,2]
[360983918,1747181436004,-400.0,0.00010958,2]
[360983919,1747181436014,-400.0,0.00010958,2]
[360983920,1747181436025,-339.15925173,0.00010958,2]
[360983921,1747181436035,-400.0,0.00010958,2]
[360983922,1747181436044,-400.0,0.00010958,2]
[360983923,1747181436054,-400.0,0.00010958,2]
[360983924,1747181436063,-400.0,0.00010958,2]
[360983925,1747181436072,-400.0,0.00010958,2]
[360983926,1747181436082,-400.0,0.00010958,2]
[360983927,1747181436091,-400.0,0.00010958,2]
[360983928,1747181436101,-472.57465045,0.00010958,2]
[360983929,1747181436111,-400.0,0.00010958,2]
[360983930,1747181436121,-400.0,0.00010958,2]
[360983931,1747181436130,-989.4,0.00010958,2]
[360983932,1747181436140,-400.0,0.00010958,2]
[360983933,1747181436150,-400.0,0.00010958,2]
[360983934,1747181436159,-152.87,0.00010958,2]
[360983935,1747181436170,-400.0,0.00010958,2]
[360983936,1747181436180,-400.0,0.00010958,2]
[360983937,1747181436190,-400.0,0.00010958,2]
[360983938,1747181436199,-400.19532354,0.00010958,2]
[360983939,1747181436209,-459.82095358,0.00010958,2]
[360983940,1747181436218,-642.57,0.00010958,2]
[360983941,1747181436227,-400.0,0.00010958,2]
[360983942,1747181436236,-400.0,0.00010958,2]
[360983943,1747181436246,-572.74,0.00010958,2]
[360983944,1747181436255,-400.0,0.00010958,2]
[360983945,1747181436265,-400.0,0.00010958,2]
[360983946,1747181436274,-400.0,0.00010958,2]
[360983947,1747181436283,-250.0,0.00010958,2]
[360983948,1747181436294,-400.0,0.00010958,2]
[360983949,1747181436304,-828.15,0.00010958,2]
[360983950,1747181436313,-474.21,0.00010958,2]
[360983951,1747181436322,-666.51,0.00010958,2]
[360983952,1747181436331,-400.0,0.00010958,2]
[360983953,1747181436341,-400.0,0.00010958,2]
[360983954,1747181436350,-400.0,0.00010958,2]
[360983955,1747181436359,-400.0,0.00010958,2]
[360983956,1747181436368,-400.0,0.00010958,2]
[360983957,1747181436378,-400.0,0.00010958,2]
[360983958,1747181436388,-400.0,0.00010958,2]
[360983959,1747181436397,-959.27,0.00010958,2]
[360983960,1747181436407,-400.0,0.00010958,2]
[360983961,1747181436417,-400.0,0.00010958,2]
[360983962,1747181436427,-473.16,0.00010958,2]
[360983963,1747181436436,-361.00641023,0.00010958,2]
[360983964,1747181436445,-512.22,0.00010958,2]
[360983965,1747181436455,-400.0,0.00010958,2]
[360983966,1747181436465,-400.0,0.00010958,2]
[360983967,1747181436474,-400.0,0.00010958,2]
[360983968,1747181436483,-400.0,0.00010958,2]
[360983969,1747181436494,-541.74,0.00010958,2]
[360983970,1747181436504,-400.0,0.00010958,2]
[360983971,1747181436516,-449.71,0.00010958,2]
[360983972,1747181436526,-468.41952721,0.00010958,2]
[360983973,1747181436535,-400.0,0.00010958,2]
[360983974,1747181436545,-400.0,0.00010958,2]
[360983975,1747181436554,-400.0,0.00010958,2]
[360983976,1747181436564,-943.71,0.00010958,2]
[360983977,1747181436574,-400.0,0.00010958,2]
[360983978,1747181436583,-400.0,0.00010958,2]
[360983979,1747181436593,-436.39,0.00010958,2]
[360983980,1747181436603,-400.0,0.00010958,2]
[360983981,1747181436612,-400.0,0.00010958,2]
[360983982,1747181436621,-400.0,0.00010958,2]
[360983983,1747181436631,-400.0,0.00010958,2]
[360983984,1747181436640,-400.0,0.00010958,2]
[360983985,1747181436650,-400.0,0.00010958,2]
[360983986,1747181436659,-430.51,0.00010958,2]
[360983987,1747181436670,-400.0,0.00010958,2]
[360983988,1747181436679,-421.89,0.00010958,2]
[360983989,1747181436688,-400.0,0.00010958,2]
[360983990,1747181436698,-400.0,0.00010958,2]
[360983991,1747181436707,-400.0,0.00010958,2]
[360983992,1747181436717,-400.0,0.00010958,2]
[360983993,1747181436726,-400.0,0.00010958,2]
[360983994,1747181436737,-400.0,0.00010958,2]
[360983995,1747181436746,-400.0,0.00010958,2]
[360983996,1747181436757,-400.0,0.00010958,2]
[360983997,1747181436767,-400.0,0.00010958,2]
[360983998,1747181436777,-400.0,0.00010958,2]
[360983999,1747181436786,-875.81,0.00010958,2]
[360984000,1747181436796,-400.0,0.00010958,2]
[360984001,1747181436806,-400.0,0.00010958,2]
[360984002,1747181436816,-400.0,0.00010958,2]
[360984003,1747181436827,-400.0,0.00010958,2]
[360984004,1747181436836,-400.0,0.00010958,2]
[360984005,1747181436847,-400.0,0.00010958,2]
[360984006,1747181436856,-400.0,0.00010958,2]
[360984007,1747181436866,-540.35,0.00010958,2]
[360984008,1747181436877,-400.0,0.00010958,2]
[360984009,1747181436887,-400.0,0.00010958,2]
[360984010,1747181436896,-400.0,0.00010958,2]
[360984011,1747181436906,-1407.18,0.00010958,2]
[360984012,1747181436916,-400.0,0.00010958,2]
[360984013,1747181436925,-400.0,0.00010958,2]
[360984014,1747181436935,-631.12,0.00010958,2]
[360984015,1747181436946,-400.0,0.00010958,2]
[360984016,1747181436957,-400.0,0.00010958,2]
[360984017,1747181436967,-400.0,0.00010958,2]
[360984018,1747181436976,-400.0,0.00010958,2]
[360984019,1747181436986,-400.0,0.00010958,2]
[360984020,1747181436997,-626.21,0.00010958,2]
[360984021,1747181437007,-400.0,0.00010958,2]
[360984022,1747181437017,-400.0,0.00010958,2]
[360984023,1747181437028,-400.0,0.00010958,2]
[360984024,1747181437038,-877.71,0.00010958,2]
[360984025,1747181437048,-400.0,0.00010958,2]
[360984026,1747181437059,-400.0,0.00010958,2]
[360984027,1747181437069,-400.0,0.00010958,2]
[360984028,1747181437078,-400.0,0.00010958,2]
[360984029,1747181437088,-431.06,0.00010958,2]
[360984030,1747181437098,-400.0,0.00010958,2]
[360984031,1747181437107,-400.0,0.00010958,2]
[360984032,1747181437117,-400.0,0.00010958,2]
[360984033,1747181437128,-718.2,0.00010958,2]
[360984034,1747181437138,-400.0,0.00010958,2]
[360984035,1747181437147,-820.33,0.00010958,2]
[360984036,1747181437157,-400.0,0.00010958,2]
[360984037,1747181437168,-306.55680244,0.00010958,2]
[360984038,1747181437177,-400.0,0.00010958,2]
[360984039,1747181437188,-400.0,0.00010958,2]
[360984040,1747181437197,-400.0,0.00010958,2]
[360984041,1747181437207,-400.0,0.00010958,2]
[360984042,1747181437217,-705.93,0.00010958,2]
[360984043,1747181437227,-400.0,0.00010958,2]
[360984044,1747181437239,-400.0,0.00010958,2]
[360984045,1747181437249,-899.67,0.00010958,2]
[360984046,1747181437259,-400.0,0.00010958,2]
[360984047,1747181437269,-400.0,0.00010958,2]
[360984048,1747181437278,-1767.46,0.00010958,2]
[360984049,1747181437288,-400.0,0.00010958,2]
[360984050,1747181437298,-567.81,0.00010958,2]
[360984051,1747181437307,-400.0,0.00010958,2]
[360984052,1747181437317,-400.0,0.00010958,2]